fUST/lending_fUST_20251231
["ID","MTS","AMOUNT","RATE_DAILY","PERIOD"]
[400116628,1767132656006,-151.0,0.00027397,7]
[400116629,1767132656016,-151.0,0.00027397,7]
[400116630,1767132656025,-151.0,0.00027397,7]
[400116631,1767132656035,-151.0,0.00027397,7]
[400116632,1767132656045,-151.0,0.00027397,7]
[400116633,1767132656054,-279.781058,0.00027397,7]
[400116634,1767132656063,-151.0,0.00027397,7]
[400116635,1767132656073,-151.0,0.00027397,7]
[400116636,1767132656082,-151.0,0.00027397,7]
[400116637,1767132656091,-151.0,0.00027397,7]
[400116638,1767132656101,-151.0,0.00027397,7]
[400116639,1767132656110,-255.40502,0.00027397,7]
[400116640,1767132656120,-151.0,0.00027397,7]
[400116641,1767132656129,-252.993084,0.00027397,7]
[400116642,1767132656139,-151.424275,0.00027397,7]
[400116643,1767132656148,-151.0,0.00027397,7]
[400116644,1767132656158,-151.0,0.00027397,7]
[400116645,1767132656167,-151.0,0.00027397,7]
[400116646,1767132656177,-151.0,0.00027397,7]
[400116647,1767132656186,-151.0,0.00027397,7]
[400116648,1767132656195,-151.0,0.00027397,7]
[400116649,1767132656204,-151.0,0.00027397,7]
[400116650,1767132656213,-151.0,0.00027397,7]
[400116651,1767132656223,-151.0,0.00027397,7]
[400116652,1767132656233,-151.0,0.00027397,7]
[400116653,1767132656242,-151.0,0.00027397,7]
[400116654,1767132656252,-151.0,0.00027397,7]
[400116655,1767132656262,-151.0,0.00027397,7]
[400116656,1767132656272,-151.0,0.00027397,7]
[400116657,1767132656282,-151.0,0.00027397,7]
[400116658,1767132656292,-272.459787,0.00027397,7]
[400116659,1767132656302,-151.0,0.00027397,7]
[400116660,1767132656312,-160.815486,0.00027397,7]
[400116661,1767132656321,-150.0,0.00027397,5]
[400116662,1767132656331,-726.0,0.000274,3]
[400116663,1767132656340,-726.0,0.000274,3]
[400116664,1767132656349,-726.0,0.000274,3]
[400116665,1767132656359,-288.35,0.000274,7]
[400116666,1767132656369,-600.0,0.00027443,2]
[400116667,1767132656378,-1215.955606,0.0002746,5]
[400116668,1767132656387,-1000.0,0.0002748,5]
[400116669,1767132656397,-159.47,0.000275,7]
[400116670,1767132656406,-1552.86,0.000275,14]
[400116671,1767132656415,-8981.25,0.000275,2]
[400116672,1767132656425,-1000.0,0.000275,5]
[400116673,1767132656435,-265.3,0.00027502,2]
[400116674,1767132656444,-1000.0,0.0002752,5]
[400116675,1767132656453,-1000.0,0.0002754,5]
[400116676,1767132656462,-800.0,0.00027548,2]
[400116677,1767132656471,-1000.0,0.0002756,5]
[400116678,1767132656481,-1000.0,0.0002758,5]
[400116679,1767132656490,-1000.0,0.000276,5]
[400116680,1767132656500,-500.0,0.00027603,7]
[400116681,1767132656513,-151.0,0.00027608,2]
[400116682,1767132656522,-1000.0,0.0002762,5]
[400116683,1767132656532,-1000.0,0.0002764,5]
[400116684,1767132656541,-1000.0,0.0002766,5]
[400116685,1767132656552,-229.207,0.00027663,2]
[400116686,1767132656561,-416.0,0.00027663,2]
[400116687,1767132656571,-167.0,0.00027671,14]
[400116688,1767132656582,-1000.0,0.0002768,5]
[400116689,1767132656591,-1202.659268,0.0002768,5]
[400116690,1767132656600,-150.0,0.000277,2]
[400116691,1767132656610,-1000.0,0.000277,5]
[400116692,1767132656619,-1000.0,0.000277,5]
[400116693,1767132656628,-250.0,0.000277,10]
[400116694,1767132656638,-597589.89832664,0.0002772,2]
[400116695,1767132656648,-600.0,0.0002772,2]
[400116696,1767132656657,-250.0,0.000278,10]
[400116697,1767132656666,-265.3,0.00027843,2]
[400116698,1767132656676,-185.35259799,0.0002785,7]
[400116699,1767132656685,-185.35259798,0.00027884,7]
[400116700,1767132656694,-663.93287602,0.00027885,2]
[400116701,1767132656704,-165.69,0.000279,7]
[400116702,1767132656713,-250.0,0.000279,10]
[400116703,1767132656722,-2000.0,0.00027933,7]
[400116704,1767132656732,-384.82830815,0.00027945,5]
[400116705,1767132656742,-474.5,0.00027965,10]
[400116706,1767132656751,-600.0,0.00027997,2]
[400116707,1767132656760,-15307.62179137,0.00028,2]
[400116708,1767132656770,-595.83744368,0.00028,2]
[400116709,1767132656779,-519.64420806,0.00028,2]
[400116710,1767132656789,-1691.0,0.00028,7]
[400116711,1767132656798,-378.0,0.00028,8]
[400116712,1767132656808,-204.93982025,0.00028,2]
[400116713,1767132656818,-250.0,0.00028,10]
[400116714,1767132656827,-2719.594982,0.00028,2]
[400116715,1767132656837,-1041.66666667,0.00028,7]
[400116716,1767132656846,-343.00028448,0.00028,2]
[400116717,1767132656855,-3176.0,0.00028011,7]
[400116718,1767132656864,-250.0,0.000281,10]
[400116719,1767132656874,-153.0,0.00028119,30]
[400116720,1767132656883,-153.0,0.00028119,30]
[400116721,1767132656893,-153.0,0.00028119,30]
[400116722,1767132656903,-153.0,0.00028119,30]
[400116723,1767132656912,-250.0,0.000282,10]
[400116724,1767132656921,-496.89068161,0.00028268,14]
[400116725,1767132656931,-600.0,0.00028273,30]
[400116726,1767132656940,-717.24657158,0.00028274,2]
[400116727,1767132656949,-272.501494,0.000283,10]
[400116728,1767132657016,-688.49839244,0.00028433,2]
[400116729,1767132657025,-300.35112488,0.00028438,18]
[400116730,1767132657035,-153.0,0.00028448,30]
[400116731,1767132657045,-153.0,0.00028448,30]
[400116732,1767132657054,-153.0,0.00028448,30]
[400116733,1767132657064,-153.0,0.00028448,30]
[400116734,1767132657074,-153.0,0.00028448,30]
[400116735,1767132657084,-153.0,0.00028448,30]
[400116736,1767132657093,-153.0,0.00028448,30]
[400116737,1767132657102,-153.0,0.00028448,30]
[400116738,1767132657111,-153.0,0.00028448,30]
[400116739,1767132657120,-153.0,0.00028448,30]
[400116740,1767132657129,-153.0,0.00028448,30]
[400116741,1767132657138,-153.0,0.00028448,30]
[400116742,1767132657148,-153.0,0.00028448,30]
[400116743,1767132657157,-153.0,0.00028448,30]
[400116744,1767132657166,-153.0,0.00028448,30]
[400116745,1767132657176,-153.0,0.00028448,30]
[400116746,1767132657185,-153.0,0.00028448,30]
[400116747,1767132657195,-153.0,0.00028448,30]
[400116748,1767132657204,-153.0,0.00028448,30]
[400116749,1767132657214,-153.0,0.00028448,30]
[400116750,1767132657223,-153.0,0.00028448,30]
[400116751,1767132657233,-169.22126826,0.00028493,60]
[400116752,1767132657243,-500.0,0.00028493,60]
[400116753,1767132657252,-151.37234462,0.00028493,60]
[400116754,1767132657263,-150.0,0.00028493,60]
[400116755,1767132657273,-150.0,0.00028493,2]
[400116756,1767132657283,-250.0,0.00028493,60]
[400116757,1767132657293,-500.0,0.00028493,60]
[400116758,1767132657303,-500.0,0.00028493,60]
[400116759,1767132657313,-500.0,0.00028493,60]
[400116760,1767132657322,-205.42464996,0.00028493,60]
[400116761,1767132657332,-500.0,0.00028493,60]
[400116762,1767132657341,-150.0,0.00028493,60]
[400116763,1767132657351,-151.66549106,0.00028493,60]
[400116764,1767132657361,-159.63944667,0.00028493,60]
[400116765,1767132657371,-201.05592048,0.00028493,60]
[400116766,1767132657380,-86577.76783665,0.000285,7]
[400116767,1767132657633,-701.12110858,0.000285,7]
[400116768,1767132658141,-151.0,0.0001349,2]
[400116769,1767132658151,-151.0,0.0001349,2]
[400116770,1767132658161,-151.0,0.0001349,2]
[400116771,1767132658170,-151.0,0.0001349,2]
[400116772,1767132658180,-148.1144226,0.0001349,2]
[400116773,1767132658275,-2.8855774,0.0001349,2]
[400116774,1767132658284,-81.79856669,0.0001349,2]
[400116777,1767132690299,150.0,0.00012518,2]
[400116778,1767132769170,150.0,0.00012444,2]
[400116779,1767132848153,295.13,0.0001242,2]
[400116780,1767132927891,291.37,0.00012481,2]
[400116781,1767132938239,212.7848518,0.00012194,2]
[400116782,1767133007112,311.17,0.00012303,2]
[400116784,1767133086837,307.21,0.00012288,2]
[400116788,1767133165645,303.3,0.00012203,2]
[400116789,1767133209975,-606.61,0.00012784,2]
[400116790,1767133209999,-513.90419635,0.00012784,2]
[400116791,1767133245302,291.72,0.00012387,2]
[400116792,1767133323799,288.01,0.00012437,2]
[400116794,1767133402583,284.34,0.00012443,2]
[400116797,1767133483340,280.73,0.00012438,2]
[400116798,1767133510094,231.86888028,0.0002519,120]
[400116814,1767133562362,277.15,0.00012375,2]
[400116821,1767133641477,273.63,0.00012367,2]
[400116833,1767133671050,999.0,0.00012088,2]
[400116854,1767133720168,270.14,0.0001248,2]
[400116861,1767133737983,7035.29,0.00012101,2]
[400116862,1767133738007,4735.9039684,0.00012101,2]
[400116869,1767133748124,-87.09580365,0.00012784,2]
[400116870,1767133748146,-212.90397553,0.0001281,2]
[400116871,1767133748165,-500.0,0.00012886,2]
[400116872,1767133748185,-500.0,0.00013042,2]
[400116873,1767133748211,-1729.62188937,0.00013065,2]
[400116878,1767133771119,-7499.75195397,0.00013065,2]
[400116881,1767133774383,151.0,0.000127,2]
[400116882,1767133774680,151.0,0.000125,2]
[400116883,1767133775073,151.0,0.000123,2]
[400116884,1767133775346,151.0,0.000121,2]
[400116886,1767133775624,151.0,0.000119,2]
[400116887,1767133775924,151.0,0.000116,2]
[400116888,1767133776207,151.0,0.000114,2]
[400116889,1767133776488,151.0,0.000112,2]
[400116890,1767133776770,151.0,0.00011,2]
[400116903,1767133799746,299.62,0.00012645,2]
[400116942,1767133832145,-151.0,0.000129,2]
[400116944,1767133832154,-603.0,0.000129,2]
[400116946,1767133832164,-1200.0,0.00012967,2]
[400116948,1767133832174,-8414.96830488,0.00012968,2]
[400116949,1767133832183,-999.24742259,0.00013064,2]
[400116950,1767133832192,-300.0,0.00013064,2]
[400116951,1767133832202,-300.0,0.00013064,2]
[400116952,1767133832211,-215.0,0.00013064,2]
[400116953,1767133832220,-6242.45853474,0.00013065,2]
[400116954,1767133832231,-875.89904586,0.00013065,2]
[400116955,1767133832242,-1864.47636112,0.00013065,2]
[400116969,1767133838179,-981787.79221494,0.00013065,2]
[400116970,1767133838189,-2433.70072057,0.00013068,2]
[400116971,1767133838198,-950.0,0.00013161,2]
[400116972,1767133838208,-50000.0,0.00013162,2]
[400116973,1767133838219,-164.706,0.00013165,2]
[400116974,1767133838228,-500.0,0.00013166,2]
[400116975,1767133838238,-614.00374773,0.00013166,2]
[400116976,1767133838247,-500.0,0.00013166,2]
[400116977,1767133838256,-500.0,0.00013166,2]
[400116978,1767133838266,-500.0,0.00013166,2]
[400116979,1767133838275,-408.80947209,0.00013166,2]
[400116980,1767133838284,-500.0,0.00013166,2]
[400116981,1767133838294,-591.4678599,0.00013166,2]
[400116982,1767133838303,-195.7248615,0.00013166,2]
[400116983,1767133838312,-500.0,0.00013166,2]
[400116984,1767133838322,-500.0,0.00013166,2]
[400116985,1767133838331,-500.0,0.00013166,2]
[400116986,1767133838340,-500.0,0.00013166,2]
[400116987,1767133838350,-500.0,0.00013166,2]
[400116988,1767133838360,-500.0,0.00013166,2]
[400116989,1767133838369,-441.29717356,0.00013166,2]
[400116990,1767133838378,-500.0,0.00013166,2]
[400116991,1767133838387,-429.28764595,0.00013166,2]
[400116992,1767133838396,-500.0,0.00013166,2]
[400116993,1767133838406,-500.0,0.00013167,2]
[400116994,1767133838415,-437.38828455,0.00013167,2]
[400116995,1767133838425,-1445.45533465,0.00013167,2]
[400116996,1767133838434,-1445.45533465,0.00013167,2]
[400116997,1767133838443,-1445.45533465,0.00013167,2]
[400116998,1767133838453,-1445.45533465,0.00013167,2]
[400116999,1767133838463,-1445.45533465,0.00013167,2]
[400117000,1767133838472,-1445.45533465,0.00013167,2]
[400117001,1767133838481,-1445.45533465,0.00013167,2]
[400117002,1767133838491,-1445.45533465,0.00013167,2]
[400117003,1767133838500,-1445.45533465,0.00013167,2]
[400117004,1767133838509,-1445.45533465,0.00013167,2]
[400117005,1767133838519,-1445.45533465,0.00013167,2]
[400117006,1767133838528,-1486.75405851,0.00013167,2]
[400117007,1767133838537,-1486.75405851,0.00013167,2]
[400117008,1767133838546,-1486.75405851,0.00013167,2]
[400117009,1767133838556,-1486.75405851,0.00013167,2]
[400117010,1767133838565,-1486.75405851,0.00013167,2]
[400117011,1767133838575,-1486.75405851,0.00013167,2]
[400117012,1767133838585,-1486.75405851,0.00013167,2]
[400117013,1767133838595,-1486.75405851,0.00013167,2]
[400117014,1767133838605,-1486.75405851,0.00013167,2]
[400117015,1767133838615,-1486.75405851,0.00013167,2]
[400117016,1767133838625,-1486.75405851,0.00013167,2]
[400117017,1767133838635,-1486.75405851,0.00013167,2]
[400117018,1767133838645,-1725.80078948,0.00013167,2]
[400117019,1767133838655,-1725.80078948,0.00013167,2]
[400117020,1767133838665,-1725.80078948,0.00013167,2]
[400117021,1767133838674,-187.45212195,0.00013167,2]
[400117022,1767133838684,-599.24,0.00013247,2]
[400117023,1767133838693,-500.0,0.00013273,2]
[400117024,1767133838703,-553.36780836,0.00013273,2]
[400117025,1767133838712,-530.60034306,0.00013273,2]
[400117026,1767133838722,-152.69291493,0.00013273,2]
[400117027,1767133838731,-500.0,0.00013273,2]
[400117028,1767133838741,-500.0,0.00013273,2]
[400117029,1767133838750,-500.0,0.00013273,2]
[400117030,1767133838760,-500.0,0.00013273,2]
[400117031,1767133838769,-500.0,0.00013273,2]
[400117032,1767133838779,-500.0,0.00013273,2]
[400117033,1767133838788,-500.0,0.00013273,2]
[400117034,1767133838798,-500.0,0.00013273,2]
[400117035,1767133838808,-500.0,0.00013273,2]
[400117036,1767133838818,-500.0,0.00013273,2]
[400117037,1767133838828,-500.0,0.00013273,2]
[400117038,1767133838838,-500.0,0.00013273,2]
[400117039,1767133838848,-500.0,0.00013273,2]
[400117040,1767133838858,-500.15325233,0.00013273,2]
[400117041,1767133838869,-165.40870093,0.00013273,2]
[400117042,1767133838878,-500.0,0.00013273,2]
[400117043,1767133838889,-238.68810806,0.00013273,2]
[400117044,1767133838898,-500.0,0.00013273,2]
[400117045,1767133838908,-500.0,0.00013273,2]
[400117046,1767133838918,-500.0,0.00013273,2]
[400117047,1767133838928,-500.0,0.00013273,2]
[400117048,1767133838939,-500.0,0.00013273,2]
[400117049,1767133838948,-500.0,0.00013273,2]
[400117050,1767133838958,-500.0,0.00013273,2]
[400117051,1767133838968,-500.0,0.00013273,2]
[400117052,1767133838978,-500.0,0.00013273,2]
[400117053,1767133838988,-500.0,0.00013273,2]
[400117054,1767133838998,-500.0,0.00013273,2]
[400117055,1767133839008,-500.0,0.00013273,2]
[400117056,1767133839018,-500.0,0.00013273,2]
[400117057,1767133839027,-500.41782704,0.00013273,2]
[400117058,1767133839037,-500.0,0.00013273,2]
[400117059,1767133839047,-270.09084155,0.00013273,2]
[400117060,1767133839056,-500.0,0.00013273,2]
[400117061,1767133839066,-185.30799155,0.00013273,2]
[400117062,1767133839075,-500.0,0.00013273,2]
[400117063,1767133839085,-500.0,0.00013273,2]
[400117064,1767133839095,-500.0,0.00013273,2]
[400117065,1767133839104,-500.0,0.00013273,2]
[400117066,1767133839115,-210.52500245,0.00013273,2]
[400117067,1767133839124,-500.0,0.00013273,2]
[400117068,1767133839134,-500.0,0.00013273,2]
[400117069,1767133839143,-500.0,0.00013273,2]
[400117070,1767133839152,-500.0,0.00013273,2]
[400117071,1767133839162,-500.0,0.00013441,2]
[400117072,1767133839171,-211.6742,0.00013489,2]
[400117073,1767133839181,-300.0,0.00013537,2]
[400117074,1767133839190,-300.0,0.00013537,2]
[400117075,1767133839200,-300.0,0.00013537,2]
[400117076,1767133839210,-300.0,0.00013537,2]
[400117077,1767133839219,-300.0,0.00013537,2]
[400117078,1767133839229,-300.0,0.00013537,2]
[400117079,1767133839238,-300.0,0.00013537,2]
[400117080,1767133839247,-300.0,0.00013537,2]
[400117081,1767133839257,-300.0,0.00013537,2]
[400117082,1767133839266,-300.0,0.00013537,2]
[400117083,1767133839276,-300.0,0.00013537,2]
[400117084,1767133839285,-300.0,0.00013537,2]
[400117085,1767133839295,-300.0,0.00013537,2]
[400117086,1767133839305,-300.0,0.00013537,2]
[400117087,1767133839315,-300.0,0.00013537,2]
[400117088,1767133839325,-10046.3898032,0.0001354,2]
[400117089,1767133839335,-300.0,0.00013673,2]
[400117090,1767133839344,-500.0,0.00013698,2]
[400117091,1767133839354,-337.34169357,0.00013698,2]
[400117092,1767133839363,-500.0,0.00013698,2]
[400117093,1767133839372,-507.59575154,0.00013698,2]
[400117094,1767133839381,-500.0,0.00013698,2]
[400117095,1767133839390,-500.0,0.00013698,2]
[400117096,1767133839400,-528.98647481,0.00013698,2]
[400117097,1767133839409,-500.0,0.00013698,2]
[400117098,1767133839419,-500.0,0.00013698,2]
[400117099,1767133839428,-528.29778119,0.00013698,2]
[400117100,1767133839437,-1378.39,0.00013698,2]
[400117101,1767133839446,-1378.39,0.00013698,2]
[400117102,1767133839455,-1378.39,0.00013698,2]
[400117103,1767133839464,-1378.39,0.00013698,2]
[400117104,1767133839473,-1378.39,0.00013698,2]
[400117105,1767133839482,-1378.39,0.00013698,2]
[400117106,1767133839491,-1378.39,0.00013698,2]
[400117107,1767133839601,-1378.39,0.00013698,2]
[400117108,1767133839612,-1378.39,0.00013698,2]
[400117109,1767133839621,-1378.39,0.00013698,2]
[400117110,1767133839631,-1378.39,0.00013698,2]
[400117111,1767133839640,-1378.39,0.00013698,2]
[400117112,1767133839650,-1378.39,0.00013698,2]
[400117113,1767133839659,-1378.39,0.00013698,2]
[400117114,1767133839668,-1378.39,0.00013698,2]
[400117115,1767133839678,-1378.39,0.00013698,2]
[400117116,1767133839687,-1378.39,0.00013698,2]
[400117117,1767133839696,-1378.39,0.00013698,2]
[400117118,1767133839706,-1378.39,0.00013698,2]
[400117119,1767133839715,-1378.39,0.00013698,2]
[400117120,1767133839724,-1378.39,0.00013698,2]
[400117121,1767133839733,-1378.39,0.00013698,2]
[400117122,1767133839743,-1378.39,0.00013698,2]
[400117123,1767133839753,-1378.44756015,0.00013698,2]
[400117124,1767133839762,-1458.05,0.00013698,2]
[400117125,1767133839771,-1458.05,0.00013698,2]
[400117126,1767133839780,-1458.05,0.00013698,2]
[400117127,1767133839789,-1458.05,0.00013698,2]
[400117128,1767133839798,-1458.05,0.00013698,2]
[400117129,1767133839808,-1458.05,0.00013698,2]
[400117130,1767133839817,-1458.05,0.00013698,2]
[400117131,1767133839826,-1458.05,0.00013698,2]
[400117132,1767133839836,-1458.05,0.00013698,2]
[400117133,1767133839845,-1458.05,0.00013698,2]
[400117134,1767133839855,-1458.05,0.00013698,2]
[400117135,1767133839864,-1458.05,0.00013698,2]
[400117136,1767133839873,-1458.05,0.00013698,2]
[400117137,1767133839883,-1458.05,0.00013698,2]
[400117138,1767133839892,-1458.05,0.00013698,2]
[400117139,1767133839902,-1458.05,0.00013698,2]
[400117140,1767133839912,-1458.05,0.00013698,2]
[400117141,1767133839922,-1458.05,0.00013698,2]
[400117142,1767133839935,-1458.05,0.00013698,2]
[400117143,1767133839945,-1458.05,0.00013698,2]
[400117144,1767133839954,-1458.05,0.00013698,2]
[400117145,1767133839964,-1458.05,0.00013698,2]
[400117146,1767133839974,-1458.05,0.00013698,2]
[400117147,1767133839983,-1458.09328805,0.00013698,2]
[400117148,1767133839993,-462.39716455,0.00013698,2]
[400117149,1767133840005,-643.292654,0.00013699,2]
[400117150,1767133840014,-500.0,0.00013699,2]
[400117152,1767133840023,-500.0,0.00013699,2]
[400117154,1767133840032,-500.0,0.00013699,2]
[400117155,1767133840042,-500.0,0.00013699,2]
[400117156,1767133840051,-500.0,0.00013699,2]
[400117157,1767133840060,-500.0,0.00013699,2]
[400117158,1767133840070,-157.0996811,0.00013699,2]
[400117159,1767133840079,-500.0,0.00013699,2]
[400117161,1767133840088,-500.0,0.00013699,2]
[400117163,1767133840098,-565.47719136,0.00013699,2]
[400117165,1767133840108,-500.0,0.00013699,2]
[400117166,1767133840117,-500.0,0.00013699,2]
[400117167,1767133840126,-500.0,0.00013699,2]
[400117168,1767133840135,-406.98042566,0.00013699,2]
[400117170,1767133840144,-523.97056295,0.00013699,2]
[400117172,1767133840154,-502.96369924,0.00013699,2]
[400117174,1767133840163,-510.33806414,0.00013699,2]
[400117176,1767133840172,-500.0,0.00013699,2]
[400117177,1767133840181,-500.0,0.00013699,2]
[400117179,1767133840190,-500.0,0.00013699,2]
[400117181,1767133840200,-500.0,0.00013699,2]
[400117183,1767133840209,-500.0,0.00013699,2]
[400117185,1767133840219,-500.79867344,0.00013699,2]
[400117187,1767133840228,-500.0,0.00013699,2]
[400117189,1767133840237,-267.37089605,0.00013699,2]
[400117191,1767133840247,-158.08534046,0.00013699,2]
[400117193,1767133840255,-501.17963046,0.00013699,2]
[400117195,1767133840265,-500.74703084,0.00013699,2]
[400117197,1767133840274,-500.0,0.00013699,2]
[400117199,1767133840283,-500.0,0.00013699,2]
[400117201,1767133840293,-500.0,0.00013699,2]
[400117203,1767133840302,-500.0,0.00013699,2]
[400117205,1767133840311,-500.0,0.00013715,2]
[400117207,1767133840320,-500.0,0.00013728,2]
[400117209,1767133840329,-600.0,0.00013807,2]
[400117211,1767133840339,-1000.0,0.00013821,2]
[400117213,1767133840348,-1000.0,0.00013821,2]
[400117215,1767133840357,-1144.06896328,0.00013821,2]
[400117217,1767133840366,-1000.0,0.00013821,2]
[400117219,1767133840376,-1000.0,0.00013821,2]
[400117221,1767133840385,-1000.0,0.00013821,2]
[400117223,1767133840395,-1000.0,0.00013821,2]
[400117225,1767133840407,-1000.0,0.00013821,2]
[400117227,1767133840416,-1000.0,0.00013821,2]
[400117229,1767133840426,-659.38531226,0.00013821,2]
[400117231,1767133840435,-1000.0,0.00013821,2]
[400117233,1767133840444,-1000.0,0.00013821,2]
[400117235,1767133840454,-500.0,0.00013821,2]
[400117236,1767133840463,-1000.0,0.00013821,2]
[400117238,1767133840473,-1000.0,0.00013821,2]
[400117240,1767133840482,-1000.0,0.00013821,2]
[400117242,1767133840492,-1000.0,0.00013821,2]
[400117244,1767133840501,-1000.0,0.00013821,2]
[400117246,1767133840510,-1000.0,0.00013821,2]
[400117248,1767133840519,-1001.61542558,0.00013821,2]
[400117250,1767133840528,-1001.51940967,0.00013821,2]
[400117252,1767133840537,-1000.0,0.00013821,2]
[400117254,1767133840546,-1000.0,0.00013821,2]
[400117256,1767133840556,-1000.0,0.00013821,2]
[400117258,1767133840565,-1000.0,0.00013821,2]
[400117260,1767133840574,-493.85504608,0.00013821,2]
[400117262,1767133840584,-499.76525701,0.00013821,2]
[400117264,1767133840594,-1000.0,0.00013821,2]
[400117266,1767133840603,-1000.0,0.00013821,2]
[400117268,1767133840613,-459.70529653,0.00013821,2]
[400117270,1767133840622,-205.15331255,0.00013821,2]
[400117272,1767133840631,-1000.0,0.00013821,2]
[400117274,1767133840640,-1000.0,0.00013821,2]
[400117276,1767133840649,-1000.0,0.00013821,2]
[400117278,1767133840658,-1000.0,0.00013821,2]
[400117280,1767133840668,-898.87,0.00013849,2]
[400117282,1767133840677,-163.49309026,0.00013973,2]
[400117284,1767133840686,-500.0,0.00013989,2]
[400117285,1767133840695,-600.0,0.00014221,2]
[400117288,1767133840704,-304.76708556,0.00014247,2]
[400117289,1767133840714,-1000.0,0.00014247,2]
[400117292,1767133840724,-500.52505764,0.00014247,2]
[400117293,1767133840733,-1000.0,0.00014247,2]
[400117295,1767133840742,-501.88391057,0.00014247,2]
[400117297,1767133840752,-502.36383556,0.00014247,2]
[400117299,1767133840761,-164.39071824,0.00014247,2]
[400117301,1767133840770,-625.29416392,0.00014247,2]
[400117303,1767133840780,-1011.97065526,0.00014247,2]
[400117305,1767133840790,-1000.0,0.00014247,2]
[400117307,1767133840799,-500.83766924,0.00014247,2]
[400117309,1767133840809,-1000.0,0.00014247,2]
[400117311,1767133840818,-1000.0,0.00014247,2]
[400117314,1767133840828,-500.0,0.00014263,2]
[400117315,1767133840838,-1680.0,0.00014264,2]
[400117317,1767133840847,-420.0,0.00014326,2]
[400117320,1767133840857,-420.0,0.00014326,2]
[400117321,1767133840867,-1500.0,0.00014368,2]
[400117323,1767133840876,-1500.0,0.00014368,2]
[400117326,1767133840886,-1505.03427004,0.00014368,2]
[400117328,1767133840896,-1500.0,0.00014368,2]
[400117329,1767133840905,-1500.0,0.00014368,2]
[400117331,1767133840915,-1500.0,0.00014368,2]
[400117333,1767133840926,-1500.0,0.00014368,2]
[400117335,1767133840939,-345.67383006,0.00014368,2]
[400117337,1767133840949,-1500.0,0.00014368,2]
[400117339,1767133840959,-1306.02349709,0.00014368,2]
[400117341,1767133840968,-1500.0,0.00014368,2]
[400117343,1767133840978,-1500.0,0.00014368,2]
[400117345,1767133840988,-153.33728789,0.00014368,2]
[400117347,1767133840998,-1500.0,0.00014368,2]
[400117349,1767133841007,-1500.0,0.00014368,2]
[400117351,1767133841015,-1500.0,0.00014368,2]
[400117353,1767133841025,-1500.0,0.00014368,2]
[400117355,1767133841034,-1500.0,0.00014368,2]
[400117357,1767133841043,-1500.0,0.00014368,2]
[400117359,1767133841053,-185.90422745,0.00014368,2]
[400117361,1767133841062,-602.08725068,0.00014368,2]
[400117363,1767133841072,-1500.0,0.00014368,2]
[400117365,1767133841081,-848.74032619,0.00014368,2]
[400117367,1767133841090,-153.38433205,0.00014368,2]
[400117369,1767133841100,-1500.0,0.00014368,2]
[400117371,1767133841110,-1500.0,0.00014368,2]
[400117373,1767133841119,-500.0,0.00014451,2]
[400117375,1767133841128,-1198.49,0.00014451,2]
[400117377,1767133841138,-500.0,0.00014537,2]
[400117379,1767133841147,-298.4228942,0.00014768,2]
[400117381,1767133841156,-1302.96487012,0.00014795,2]
[400117383,1767133841165,-1162.12803708,0.00014795,2]
[400117385,1767133841174,-501.28240001,0.00014795,2]